bitfinex/quotes_ETHUSD_20241122
["timestamp","ask_amount","ask_price","bid_price","bid_amount"]
[1732269740652,0.55,3362.0,3361.8,0.2966]
[1732269741560,0.55,3362.2,3361.9,0.2966]
[1732269741723,3.23954232,3362.2,3361.9,0.2966]
[1732269741928,0.55,3362.0,3361.9,0.2966]
[1732269742323,2.92,3362.0,3361.9,0.2966]
[1732269742654,2.92,3362.0,3361.5,0.2966]
[1732269745426,0.40181423,3362.1,3361.6,0.2966]
[1732269745427,4.00294232,3361.8,3361.6,0.2966]
[1732269746058,0.55,3361.8,3361.6,0.2966]
[1732269746368,0.55,3361.8,3361.7,0.2966]
[1732269747235,0.55,3361.8,3361.7,1.1055]
[1732269747568,2.37,3361.9,3361.7,1.1055]
[1732269748430,0.30983532,3362.2,3361.7,1.1055]
[1732269748731,0.55,3362.1,3361.7,1.1055]
[1732269749961,0.55,3361.9,3361.6,0.2966]
[1732269750665,0.55,3362.1,3361.6,0.2966]
[1732269750868,0.95716612,3362.1,3361.7,0.2966]
[1732269751327,0.55,3361.9,3361.7,0.2966]
[1732269751531,0.93771661,3361.8,3361.7,0.2966]
[1732269751965,0.55,3361.7,3361.3,0.2966]
[1732269752157,2.92,3361.7,3361.3,0.2966]
[1732269753270,2.92,3361.7,3361.5,0.2966]
[1732269753570,0.55,3361.6,3361.5,0.2966]
[1732269754470,2.37,3361.7,3361.5,0.2966]
[1732269754774,2.37,3361.7,3360.6,0.2966]
[1732269754942,2.67983532,3362.2,3361.0,0.2966]
[1732269755135,2.67983532,3362.2,3361.6,0.2966]
[1732269755330,0.30983532,3362.2,3361.8,0.2966]
[1732269755577,0.30983532,3362.2,3361.5,3.0]
[1732269755578,0.30983532,3362.2,3362.0,0.2966]
[1732269756615,0.30983532,3362.2,3362.1,1.1288]
[1732269756755,0.85983532,3362.2,3362.1,1.1288]
[1732269757861,0.30983532,3362.2,3362.1,1.1288]
[1732269758495,1.4276798,3363.2,3362.5,0.2966]
[1732269758691,3.7976798,3363.2,3362.5,0.2966]
[1732269758987,1.40154813,3363.0,3362.5,0.2966]
[1732269759492,1.4412297,3362.8,3362.5,0.2966]
[1732269759826,1.4412297,3362.8,3361.9,0.2966]
[1732269759827,0.7673,3362.6,3361.9,0.2966]
[1732269759995,2.68954232,3362.0,3361.9,0.2966]
[1732269760210,2.68954232,3362.0,3361.2,0.752]
[1732269760211,5.82684232,3362.0,3361.2,0.752]
[1732269760413,3.18895423,3361.9,3361.2,0.752]
[1732269760876,3.18895423,3361.9,3361.3,0.2966]
[1732269761079,3.18895423,3361.9,3359.8,0.02975238]
[1732269761279,0.55,3361.7,3360.2,0.2966]
[1732269761598,0.55,3361.7,3360.6,0.2966]
[1732269761896,0.55,3361.5,3360.6,0.2966]
[1732269762264,0.55,3361.5,3360.8,0.2966]
[1732269763293,0.55,3361.5,3360.6,0.32635261]
[1732269763664,0.55,3361.5,3360.8,0.2966]
[1732269765385,0.55,3361.5,3361.2,0.2966]
[1732269766600,2.92,3361.5,3361.2,0.2966]
[1732269767380,2.37,3361.5,3361.2,0.2966]
[1732269768577,0.55,3361.4,3361.2,0.2966]
[1732269769435,3.212,3361.4,3360.8,1.0489]
[1732269769581,2.92,3361.4,3360.8,1.0489]
[1732269771313,2.92,3361.4,3361.0,0.2966]
[1732269771516,2.92,3361.4,3361.2,0.2966]
[1732269772494,0.55,3361.4,3361.2,0.2966]
[1732269774603,3.2023,3362.3,3361.3,0.7748]
[1732269774893,2.37,3362.2,3361.6,0.2966]
[1732269775326,2.67980243,3362.2,3361.6,0.2966]
[1732269776095,0.55,3362.1,3361.6,0.2966]
[1732269776737,2.67980243,3362.2,3361.8,0.79]
[1732269776738,0.30980243,3362.2,3361.8,0.79]
[1732269776909,0.30980243,3362.2,3361.9,0.2966]
[1732269779238,0.30980243,3362.2,3361.8,0.79]
[1732269779239,0.30980243,3362.2,3362.1,0.2966]
[1732269780039,0.01320243,3362.2,3362.1,0.2966]
[1732269780659,0.01320243,3362.2,3362.1,1.12774003]
[1732269780951,0.01320233,3362.2,3362.1,1.098]
[1732269782659,0.01320233,3362.2,3362.1,1.5078]
[1732269783557,0.01320233,3362.2,3362.1,1.098]
[1732269785925,0.01320233,3362.2,3362.0,0.2966]
[1732269786622,0.01320233,3362.2,3362.1,4.0719]
[1732269786826,0.01320233,3362.2,3362.1,4.47909]
[1732269787125,0.01320233,3362.2,3362.1,1.47909]
[1732269787324,0.01320233,3362.2,3362.1,4.0719]
[1732269787760,0.01320233,3362.2,3362.1,1.0719]
[1732269787957,0.01320233,3362.2,3362.1,4.0719]
[1732269788160,0.01320233,3362.2,3362.0,0.2966]
[1732269788367,0.01320233,3362.2,3362.0,0.62626]
[1732269788538,0.01320233,3362.2,3362.0,0.2966]
[1732269790029,0.55,3362.7,3362.0,0.2966]
[1732269790250,0.55,3362.5,3362.0,0.2966]
[1732269790531,0.55,3362.5,3362.1,0.2966]
[1732269790934,0.55,3362.5,3362.1,0.62626]
[1732269791171,0.55,3362.5,3362.1,0.2966]
[1732269791765,0.55,3362.5,3362.0,0.2966]
[1732269793269,0.55,3362.5,3362.2,0.2966]
[1732269795775,0.55,3362.5,3362.0,0.2966]
[1732269795977,0.55,3362.5,3362.2,0.2966]
[1732269796332,0.55,3362.3,3362.2,0.2966]
[1732269796731,0.55,3362.5,3362.2,0.2966]
[1732269796955,0.55,3362.5,3361.7,0.832]
[1732269796956,0.55,3362.5,3361.9,0.2966]
[1732269797343,0.55,3362.5,3362.0,0.02974274]
[1732269797572,0.55,3362.5,3362.1,0.2966]
[1732269799568,0.55,3362.3,3361.9,0.2966]
[1732269800467,0.55,3362.3,3362.0,0.2966]
[1732269801457,0.55,3362.3,3361.7,0.2966]
[1732269801843,0.15452553,3362.2,3361.7,0.2966]
[1732269802048,0.55,3362.1,3361.7,0.2966]
[1732269802693,0.55,3362.1,3361.7,3.2966]
[1732269803062,0.55,3362.1,3361.7,0.2966]
[1732269803447,0.55,3362.1,3361.8,0.2966]
[1732269803682,0.55,3361.9,3361.8,0.2966]
[1732269803884,3.06977255,3361.9,3361.8,0.2966]
[1732269804065,2.92,3361.9,3361.8,0.2966]
[1732269805350,2.92,3361.9,3361.2,0.2966]
[1732269805603,2.92,3361.9,3359.5,0.02974833]
[1732269805604,2.92,3361.9,3361.4,0.2966]
[1732269806368,3.29132,3361.9,3361.4,0.2966]
[1732269806569,3.29132,3361.9,3361.5,0.2966]
[1732269806790,2.92,3361.9,3361.5,0.2966]
[1732269807687,2.92,3361.9,3361.0,3.2966]
[1732269808494,2.92,3361.9,3361.0,0.2966]
[1732269809598,2.92,3361.9,3361.0,3.2966]
[1732269809801,0.7538,3361.8,3361.0,0.2966]
[1732269809999,0.55,3361.7,3361.0,0.2966]
[1732269810296,0.55,3361.5,3360.7,0.2966]
[1732269810500,2.68954232,3361.7,3360.7,3.2966]
[1732269810794,0.55,3361.3,3360.7,0.2966]
[1732269810954,2.37,3361.2,3360.7,0.2966]
[1732269811157,0.55,3361.1,3360.3,0.2966]
[1732269811496,2.92,3361.1,3360.3,0.2966]
[1732269812090,0.55,3360.9,3360.1,0.2966]
[1732269812470,0.55,3360.9,3360.4,0.2966]
[1732269813099,0.55,3360.9,3359.0,0.01]
[1732269813100,2.37,3361.1,3360.6,3.2966]
[1732269813402,2.37,3361.1,3361.0,0.2966]
[1732269813557,0.8162,3361.5,3361.0,0.2966]
[1732269813985,0.8162,3361.5,3361.2,0.2966]
[1732269814402,0.55,3361.4,3361.2,0.2966]
[1732269814998,0.55,3361.4,3361.3,0.2966]
[1732269815999,0.55,3361.4,3360.7,0.2966]
[1732269816198,0.55,3361.4,3360.9,0.2966]
[1732269816401,0.55,3361.4,3361.1,0.2966]
[1732269816705,0.55,3361.4,3361.3,0.2966]
[1732269817702,0.55,3361.4,3360.7,0.32635231]
[1732269818001,0.55,3361.4,3360.9,0.2966]
[1732269818205,0.55,3361.4,3361.1,0.2966]
[1732269818498,0.55,3361.4,3360.6,3.8008]
[1732269818499,0.55,3361.7,3361.3,0.2966]
[1732269818700,0.55,3361.7,3361.5,0.2966]
[1732269819104,2.63895423,3362.2,3361.5,0.2966]
[1732269819105,0.7901,3362.1,3361.5,0.2966]
[1732269819412,3.1601,3362.1,3361.7,0.2966]
[1732269820177,3.1601,3362.1,3361.9,0.2966]
[1732269820378,2.37,3362.1,3361.9,0.2966]
[1732269821182,3.1366,3362.5,3361.9,0.2966]
[1732269822276,3.1366,3362.5,3362.1,0.2966]
[1732269822604,0.7666,3362.5,3362.1,0.2966]
[1732269823174,0.7666,3362.5,3362.2,0.2966]
[1732269824178,0.7666,3362.5,3361.9,0.2966]
[1732269824381,0.15427248,3362.4,3362.1,0.2966]
[1732269824585,0.55,3362.5,3362.3,0.2966]
[1732269825115,2.6797757,3362.6,3362.3,0.2966]
[1732269825315,2.6797757,3362.6,3362.3,1.0707]
[1732269825623,0.3097757,3362.6,3362.5,0.2966]
[1732269825787,0.3097757,3362.6,3362.5,0.94691576]
[1732269825981,0.3097757,3362.6,3362.5,0.51773251]
[1732269827284,0.3097757,3362.6,3362.5,1.29603251]
[1732269827686,0.766,3363.4,3362.5,1.29603251]
[1732269827886,2.37,3363.3,3362.7,0.2966]
[1732269828114,0.55,3363.2,3362.9,0.2966]
[1732269829086,0.55,3363.2,3362.6,0.2966]
[1732269832019,2.37,3363.3,3362.8,0.2966]
[1732269832215,2.37,3363.4,3362.8,0.2966]
[1732269832418,2.37,3363.4,3362.8,0.32633475]
[1732269833285,0.8035,3364.0,3363.0,0.2966]
[1732269833482,0.8035,3364.0,3363.1,0.02973102]
[1732269833707,1.13587892,3364.0,3363.1,0.02973102]
[1732269833916,1.13587892,3364.0,3363.3,0.2966]
[1732269834095,2.37,3363.9,3363.3,0.2966]
[1732269834492,0.55,3363.8,3363.3,0.2966]
[1732269836950,0.55,3363.8,3363.4,0.2966]
[1732269837840,0.55,3363.8,3363.1,0.2966]
[1732269838550,2.92,3363.8,3363.1,0.2966]
[1732269839559,0.55,3363.6,3362.9,0.2966]
[1732269839731,0.55,3363.4,3362.9,0.2966]
[1732269840620,0.55,3363.4,3363.0,0.2966]
[1732269840950,3.1392,3363.3,3363.0,0.2966]
[1732269841115,0.55,3363.1,3363.0,0.2966]
[1732269841620,0.55,3363.1,3362.4,0.2966]
[1732269843001,0.55,3363.1,3362.4,0.32633695]
[1732269843288,0.55,3363.1,3362.4,0.32633684]
[1732269843796,2.37,3363.2,3362.6,0.2966]
[1732269844490,0.8164,3363.5,3362.6,0.2966]
[1732269846899,0.8164,3363.5,3362.8,0.2966]
[1732269847453,0.55,3363.4,3362.8,0.2966]
[1732269847906,0.55,3363.4,3362.5,0.7895]
[1732269847907,0.55,3363.4,3362.6,0.2966]
[1732269850603,0.55,3363.2,3362.6,0.2966]
[1732269850809,0.97864,3363.2,3362.6,0.2966]
[1732269853384,0.55,3363.2,3362.6,0.2966]
[1732269853583,0.55,3363.3,3362.6,0.2966]
[1732269855907,0.55,3363.3,3362.8,0.2966]
[1732269856217,2.37,3363.4,3363.0,0.2966]
[1732269856581,2.37,3363.8,3363.0,0.2966]
[1732269856782,2.68275,3363.8,3363.0,0.2966]
[1732269857403,0.55,3363.7,3363.0,0.2966]
[1732269858809,3.1275,3363.9,3363.0,0.2966]
[1732269859010,0.55,3363.8,3363.2,0.2966]
[1732269860234,0.55,3363.8,3363.3,0.2966]
[1732269860433,0.91775,3363.8,3363.3,0.2966]
[1732269861248,0.91775,3363.8,3363.0,0.2966]
[1732269862609,0.55,3363.6,3363.0,0.2966]
[1732269865613,2.92,3363.6,3363.0,0.2966]
[1732269866131,0.7767,3363.5,3363.0,0.2966]
[1732269866354,0.55,3363.4,3363.0,0.2966]
[1732269868039,0.55,3363.5,3363.0,0.2966]
[1732269868623,2.37,3363.4,3363.0,0.2966]
[1732269868868,2.37,3363.4,3363.2,0.2966]
[1732269871550,2.37,3363.9,3363.2,0.2966]
[1732269871761,0.55,3363.8,3363.2,0.2966]
[1732269872899,0.55,3363.6,3363.3,0.2966]
[1732269873260,0.95286189,3363.6,3363.3,0.2966]
[1732269873689,0.55,3363.8,3363.3,0.2966]
[1732269873900,0.55,3363.8,3363.5,0.2966]
[1732269874501,0.55,3363.8,3363.4,0.5048]
[1732269874683,2.37,3363.7,3361.8,0.02973501]
[1732269874872,2.37,3363.7,3361.8,0.32633501]
[1732269875593,0.8058,3363.5,3361.8,0.32633501]
[1732269876103,0.8058,3363.5,3362.0,0.2966]
[1732269876299,0.8058,3363.5,3362.7,0.2966]
[1732269876516,2.37,3363.4,3362.9,0.2966]
[1732269881596,2.37,3363.4,3362.8,0.7736]
[1732269881597,2.37,3363.4,3362.7,0.2966]
[1732269881787,2.68758,3363.4,3362.7,0.2966]
[1732269882423,0.55,3363.3,3362.7,0.2966]
[1732269883723,2.92,3363.3,3362.7,0.2966]
[1732269886695,2.37,3363.2,3362.7,0.2966]
[1732269889824,2.92,3363.3,3362.7,0.2966]
[1732269892019,2.92,3363.3,3362.7,0.70188]
[1732269892219,2.92,3363.3,3362.7,0.2966]
[1732269892727,0.55,3363.3,3362.7,0.2966]
[1732269895162,2.37,3363.4,3362.7,0.2966]
[1732269895493,2.37,3363.4,3362.9,0.2966]
[1732269895694,3.2004,3363.8,3362.9,0.2966]
[1732269896001,3.2004,3363.8,3362.1,0.02973186]
[1732269896002,0.7873,3364.0,3363.3,0.2966]
[1732269897328,0.55,3363.9,3363.3,0.2966]
[1732269900448,0.93575892,3363.9,3363.4,0.2966]
[1732269900752,0.8131,3363.8,3363.4,0.2966]
[1732269900908,0.38064339,3363.7,3363.4,0.2966]
[1732269901658,0.8131,3363.8,3363.1,0.02973037]
[1732269902142,0.8131,3363.8,3363.2,0.2966]
[1732269902743,2.37,3363.9,3363.4,0.2966]
[1732269904708,3.1398,3364.1,3363.4,0.2966]
[1732269905337,3.1398,3364.1,3363.4,0.70921]
[1732269905728,3.1398,3364.1,3363.4,0.2966]
[1732269906427,0.7698,3364.1,3363.4,0.2966]
[1732269907111,0.1502892,3364.2,3363.3,0.0297272]
[1732269907311,0.1502892,3364.2,3363.7,0.2966]
[1732269910358,0.61566519,3364.2,3363.8,0.2966]
[1732269910553,0.1502892,3364.2,3363.8,0.2966]
[1732269910718,2.5202892,3364.2,3363.8,0.2966]
[1732269911214,2.5202892,3364.2,3363.6,0.2966]
[1732269911412,2.5202892,3364.2,3363.8,0.2966]
[1732269911766,0.1502892,3364.2,3363.8,0.2966]
[1732269912052,0.1502892,3364.2,3363.8,3.2966]
[1732269912249,0.1502892,3364.2,3364.0,0.2966]
[1732269912415,0.1502892,3364.2,3364.0,0.82145272]
[1732269912821,0.1502892,3364.2,3364.0,0.2966]
[1732269915239,2.2236892,3364.3,3364.0,0.2966]
[1732269916772,0.07119577,3364.5,3364.0,0.2966]
[1732269917826,0.7713,3364.4,3364.0,0.2966]
[1732269918534,0.55,3364.3,3364.0,0.2966]
[1732269918726,0.55,3364.3,3363.7,0.2966]
[1732269919660,2.6236892,3364.3,3363.7,0.2966]
[1732269922878,2.0736892,3364.2,3363.7,0.2966]
[1732269923082,2.0736892,3364.2,3363.7,0.7035]
[1732269923656,2.0736892,3364.2,3363.7,0.2966]
[1732269925213,0.55,3363.9,3363.8,0.2966]
[1732269925683,2.6236892,3363.9,3363.8,0.2966]
[1732269926243,2.6236892,3363.9,3363.5,0.2966]
[1732269927138,2.6236892,3363.9,3363.2,0.2966]
[1732269928668,0.55,3363.7,3363.4,0.2966]
[1732269929379,2.0736892,3363.8,3363.4,0.70657]
[1732269929567,2.0736892,3363.8,3363.5,0.2966]
[1732269930678,2.0736892,3363.8,3363.4,0.2966]
[1732269931069,2.0736892,3363.8,3363.6,0.2966]
[1732269931713,3.4290892,3363.7,3363.6,0.2966]
[1732269932007,2.6236892,3363.7,3362.1,0.2966]
[1732269932172,0.55,3363.5,3362.3,0.2966]
[1732269932374,0.55,3363.3,3362.3,0.2966]
[1732269933478,0.789,3363.2,3362.3,0.2966]
[1732269933689,0.55,3363.1,3362.3,0.2966]
[1732269935110,0.55,3363.1,3362.2,0.7616]
[1732269935111,0.55,3363.1,3362.7,0.2966]
[1732269935982,0.55,3363.1,3362.8,0.2966]
[1732269936281,0.789,3363.2,3362.8,0.2966]
[1732269936282,0.55,3362.9,3362.8,0.2966]
[1732269936495,3.4425892,3362.9,3362.8,0.2966]
[1732269936979,3.4425892,3362.9,3361.6,0.2966]
[1732269937186,0.55,3362.7,3361.6,0.2966]
[1732269937685,0.7544,3362.6,3361.6,0.2966]
[1732269937883,0.55,3362.5,3361.6,0.2966]
[1732269938302,0.55,3362.5,3362.0,0.2966]
[1732269940408,2.0736892,3362.8,3362.2,0.2966]
[1732269940610,2.0736892,3362.8,3362.6,0.2966]
[1732269940811,2.0736892,3363.4,3362.6,3.2966]
[1732269941009,2.36013812,3363.4,3362.6,3.2966]
[1732269941208,2.0736892,3363.4,3362.6,0.2966]
[1732269941408,2.0736892,3363.4,3362.6,3.2966]
[1732269941793,2.0736892,3363.4,3362.6,0.2966]
[1732269942316,0.55,3363.3,3362.6,0.2966]
[1732269942520,0.55,3363.3,3362.6,0.46693837]
[1732269945601,0.55,3363.3,3362.6,0.2966]
[1732269946193,0.55,3363.3,3362.6,3.2966]
[1732269946589,0.55,3363.3,3362.6,0.2966]
[1732269946791,2.6236892,3363.3,3362.6,3.2966]
[1732269947774,2.6236892,3363.3,3362.6,0.2966]
[1732269948224,2.6236892,3363.3,3362.8,0.2966]
[1732269949088,2.6236892,3363.3,3362.6,0.2966]
[1732269949527,2.6236892,3363.3,3362.8,0.2966]
[1732269949705,2.0736892,3363.2,3362.8,0.2966]
[1732269950705,2.0736892,3363.2,3362.6,0.2966]
[1732269950930,2.0736892,3363.2,3362.8,0.2966]
[1732269952039,2.0736892,3363.2,3362.6,0.2966]
[1732269952836,2.0736892,3363.2,3362.6,0.70590362]
[1732269953332,2.0736892,3363.2,3362.6,0.2966]
[1732269954004,2.0736892,3363.2,3362.7,0.2966]
[1732269954333,2.0736892,3364.1,3362.8,0.02973619]
[1732269954535,0.7594,3363.9,3363.0,0.2966]
[1732269954710,0.7594,3363.9,3363.2,0.2966]
[1732269955039,2.8330892,3363.9,3363.2,0.2966]
[1732269955336,2.0736892,3363.9,3363.2,0.2966]
[1732269957310,2.0736892,3363.9,3363.2,0.47216409]
[1732269958738,2.0736892,3363.8,3363.2,0.47216409]
[1732269960905,0.55,3363.6,3363.2,0.2966]
[1732269961716,2.6236892,3363.6,3363.2,0.2966]
[1732269963546,2.0736892,3363.6,3363.2,0.2966]
[1732269964834,2.0736892,3363.8,3363.2,0.2966]
[1732269965234,2.0736892,3363.8,3363.4,0.2966]
[1732269966252,0.55,3363.7,3363.5,0.2966]
[1732269966451,2.0736892,3363.7,3363.5,0.2966]
[1732269967283,2.6236892,3363.7,3363.6,0.2966]
[1732269968078,2.0736892,3363.7,3363.6,0.2966]
[1732269968237,2.0736892,3363.7,3363.6,1.1148]
[1732269968984,2.0736892,3364.2,3363.9,0.2966]
[1732269969136,2.0736892,3364.2,3364.1,0.2966]
[1732269970079,1.7770892,3364.2,3364.0,0.52137]
[1732269970392,1.7770892,3364.2,3364.1,0.2966]
[1732269972441,0.07119577,3364.5,3364.1,0.678397]
[1732269972641,0.7533,3366.3,3364.7,0.2966]
[1732269972642,1.4770892,3366.2,3364.7,0.2966]
[1732269972844,1.4770892,3366.1,3364.9,0.2966]
[1732269973178,1.4770892,3366.1,3364.8,3.02971424]
[1732269973179,0.22303892,3366.0,3365.4,0.2966]
[1732269973379,1.4770892,3365.9,3365.4,0.2966]
[1732269974152,1.4770892,3366.2,3365.4,0.2966]
[1732269974860,1.4770892,3366.2,3365.3,0.8151]
[1732269975580,2.68183738,3366.0,3365.3,0.8151]
[1732269975795,1.3581,3365.5,3364.6,0.7985]
[1732269975996,1.3581,3365.5,3364.7,3.0]
[1732269975997,0.55,3365.3,3364.7,3.0]
[1732269976197,0.55,3365.3,3364.3,0.7985]
[1732269976358,0.8081,3365.1,3364.3,0.7985]
[1732269976957,0.55,3365.0,3364.3,0.7985]
[1732269977192,0.55,3365.0,3363.2,0.02972039]
[1732269977193,0.55,3365.0,3364.1,1.0863]
[1732269977397,0.55,3364.8,3364.1,0.2966]
[1732269977695,1.4770892,3364.7,3364.1,0.2966]
[1732269978257,1.4770892,3364.7,3364.0,0.2966]
[1732269978258,0.7935,3364.6,3364.0,0.2966]
[1732269978504,0.55,3364.5,3364.0,0.2966]
[1732269979192,0.55,3364.5,3363.8,0.2966]
[1732269979412,0.55,3364.5,3363.9,3.0]
[1732269979696,0.55,3364.3,3363.5,0.2966]
[1732269979896,1.4770892,3364.2,3363.5,0.2966]
[1732269980398,0.7702,3364.0,3363.5,0.2966]
[1732269980560,2.2472892,3364.0,3363.5,0.2966]
[1732269980897,1.4770892,3364.0,3363.5,0.2966]
[1732269981055,1.4770892,3364.0,3363.5,3.2966]
[1732269981252,1.4770892,3364.0,3363.5,0.2966]
[1732269981698,1.4770892,3364.0,3363.5,3.2966]
[1732269982057,1.4770892,3364.0,3363.5,0.2966]
[1732269982811,1.4770892,3364.0,3363.5,3.2966]
[1732269983167,1.4770892,3364.0,3363.5,0.2966]
[1732269984698,1.4770892,3364.0,3363.2,0.2966]
[1732269984883,1.4770892,3364.0,3363.5,3.2966]
[1732269985086,1.4770892,3364.0,3363.5,0.2966]
[1732269985087,0.55,3363.9,3363.5,0.2966]
[1732269985259,0.7848,3363.8,3363.5,0.2966]
[1732269985965,2.2618892,3363.8,3363.2,0.2966]
[1732269986465,2.54307812,3363.8,3363.2,0.2966]
[1732269986861,2.54307812,3363.8,3362.9,0.2966]
[1732269987497,2.54307812,3363.8,3362.9,3.2966]
[1732269988712,2.54307812,3363.8,3362.9,0.2966]
[1732269988864,1.4770892,3363.7,3362.9,3.2966]
[1732269989511,1.4770892,3363.7,3362.9,0.2966]
[1732269989729,1.4770892,3363.7,3362.9,3.2966]
[1732269990078,1.4770892,3363.7,3362.9,0.2966]
[1732269990496,1.4770892,3363.7,3362.9,3.2966]
[1732269991104,1.78639701,3363.7,3362.9,3.2966]
[1732269991417,1.78639701,3363.7,3363.0,0.2966]
[1732269991418,0.7604,3363.5,3363.0,0.2966]
[1732269991721,0.55,3363.4,3363.0,0.2966]
[1732269992216,0.55,3363.4,3362.7,0.2966]
[1732269992429,0.55,3363.1,3362.7,0.2966]
[1732269992723,0.55,3362.9,3362.7,0.2966]
[1732269992877,0.8192,3362.8,3362.7,0.2966]
[1732269993215,1.3692,3362.8,3362.7,0.2966]
[1732269993521,1.3692,3362.8,3361.9,0.2966]
[1732269993819,1.4770892,3362.7,3361.9,0.4687493]
[1732269994718,1.4770892,3362.7,3361.9,3.4687493]
[1732269995384,1.4770892,3362.7,3361.9,0.4687493]
[1732269995585,1.4770892,3362.7,3361.9,3.4687493]
[1732269996182,1.4770892,3362.7,3362.1,0.2966]
[1732269996585,0.55,3362.6,3362.1,0.2966]
[1732269996784,0.55,3362.4,3362.1,0.2966]
[1732269997224,0.55,3362.4,3361.5,0.7876]
[1732269997225,0.55,3362.4,3362.0,0.2966]
[1732269997913,1.4770892,3362.3,3362.0,0.2966]
[1732269998486,1.4770892,3362.3,3362.1,0.2966]
[1732269999487,1.75849812,3362.3,3362.2,0.2966]
[1732269999690,3.57460892,3362.3,3362.2,0.2966]
[1732270000489,3.57460892,3362.3,3361.3,0.2966]
[1732270000745,0.55,3362.2,3361.3,0.2966]
[1732270001105,0.55,3362.2,3361.3,3.2966]
[1732270001302,0.55,3362.2,3361.3,0.2966]
[1732270001489,1.92,3362.3,3361.8,0.2966]
[1732270001689,1.92,3362.3,3362.0,0.2966]
[1732270002730,1.59200801,3363.7,3362.9,1.0963]
[1732270002933,1.59200801,3363.7,3363.1,0.2966]
[1732270003153,1.59200801,3363.7,3363.1,3.2966]
[1732270003300,1.59200801,3363.7,3363.0,0.02973224]
[1732270003301,1.59200801,3363.7,3363.4,0.2966]
[1732270004337,1.3632,3363.5,3363.4,0.2966]
[1732270004644,0.55,3363.2,3363.0,0.2966]
[1732270004802,0.55,3363.2,3362.3,3.0]
[1732270005000,0.55,3363.0,3362.3,3.0]
[1732270005242,0.55,3362.8,3362.3,3.0]
[1732270005457,0.55,3362.8,3362.0,0.2966]
[1732270005750,0.55,3362.8,3362.4,0.2966]
[1732270006600,1.59200801,3364.0,3362.6,1.1236]
[1732270006843,0.8262,3363.8,3363.0,0.2966]
[1732270008753,1.59200801,3363.8,3363.4,0.2966]
[1732270008937,1.59200801,3364.1,3363.4,0.2966]
[1732270010811,0.55,3364.0,3363.4,0.2966]
[1732270011124,0.55,3364.0,3363.5,0.2966]
[1732270012020,0.55,3364.0,3363.6,0.2966]
[1732270012249,0.55,3363.8,3363.6,0.2966]
[1732270012971,1.59200801,3363.8,3363.6,0.2966]
[1732270013127,1.59200801,3363.8,3363.4,0.2966]
[1732270014137,1.59200801,3363.8,3362.9,0.85672971]
[1732270014138,1.59200801,3363.8,3363.5,0.2966]
[1732270015126,1.59200801,3363.8,3363.4,0.2966]
[1732270015956,0.55,3364.0,3363.4,0.2966]
[1732270017374,0.7818,3363.9,3363.4,0.2966]
[1732270017876,0.55,3363.8,3363.4,0.2966]
[1732270018052,0.55,3363.6,3363.4,0.2966]
[1732270018255,0.55,3363.6,3362.6,0.2966]
[1732270018438,0.55,3363.2,3362.6,0.2966]
[1732270019341,0.55,3363.2,3362.7,0.2966]
[1732270020292,0.55,3363.4,3362.9,0.2966]
[1732270020970,0.55,3363.2,3362.9,0.2966]
[1732270021287,0.55,3363.2,3362.1,0.7757]
[1732270021288,0.55,3363.2,3362.2,0.2966]
[1732270022541,0.55,3363.2,3362.4,0.2966]
[1732270023160,0.55,3363.2,3362.4,0.70383]
[1732270023481,0.55,3363.2,3362.4,0.2966]
[1732270023652,0.55,3363.2,3362.3,0.02974089]
[1732270024193,0.55,3363.2,3362.2,0.2966]
[1732270024479,0.54774,3363.2,3362.4,0.2966]
[1732270024681,0.54774,3363.2,3362.6,0.2966]
[1732270024869,2.13974801,3363.2,3362.6,0.2966]
[1732270025794,2.13974801,3363.2,3362.2,0.2966]
[1732270025963,2.13974801,3363.2,3362.4,0.2966]
[1732270026998,2.13974801,3363.2,3362.2,0.2966]
[1732270027282,0.55,3363.0,3362.2,0.2966]
[1732270027645,0.8263,3362.9,3362.2,0.2966]
[1732270027845,2.14200801,3362.8,3362.2,0.2966]
[1732270028045,2.14200801,3362.8,3362.3,0.2966]
[1732270028645,0.55,3362.6,3362.3,0.2966]
[1732270028845,0.55,3362.4,3362.3,0.2966]
[1732270029104,0.55,3362.4,3361.6,0.2966]
[1732270029984,0.55,3362.4,3361.8,0.2966]
[1732270030686,1.59200801,3362.3,3361.8,0.2966]
[1732270030888,0.55,3362.0,3361.8,0.2966]
[1732270031196,2.14200801,3361.9,3361.8,0.2966]
[1732270032059,0.55,3361.8,3361.3,0.2966]
[1732270033300,0.55,3361.8,3361.0,0.2966]
[1732270033481,2.14200801,3361.8,3361.4,0.2966]
[1732270036000,2.14200801,3361.8,3361.1,0.2966]
[1732270036202,2.14200801,3361.8,3361.4,0.2966]
[1732270036768,1.59200801,3361.8,3361.4,0.2966]
[1732270037008,0.8165,3362.1,3361.4,0.2966]
[1732270038118,0.8165,3362.1,3361.6,0.2966]
[1732270038352,0.55,3362.0,3361.6,0.2966]
[1732270039157,0.55,3362.0,3361.4,0.2966]
[1732270039859,0.55,3361.8,3361.4,0.2966]
[1732270040213,0.8458508,3361.8,3361.4,0.2966]
[1732270040424,0.55,3361.6,3361.5,0.2966]
[1732270042511,0.55,3361.6,3360.9,0.2966]
[1732270042715,0.55,3361.6,3360.9,0.78202177]
[1732270043056,2.14200801,3361.6,3360.9,0.78202177]